Cogmind - Beta 13 @@@ ROGUE MODE // 2024.04.03 @ 12:23:02 Player: Johge Result: Destroyed by G-47 Trooper with Particle Gun Performance ------------- Evolutions (1) 500 Regions Visited (6) 1200 Robots Destroyed (33) 165 Value Destroyed (894) 894 Prototype IDs (1) 20 Alien Tech Used (0) 0 Bonus (0) 0 TOTAL SCORE: 2779 Bonus ------- None Cogmind --------- Core Integrity 0/400 Matter 204/300 Energy 137/150 System Corruption 8% Temperature Cool (71) Movement Treading (160) Location -8/Mines Parts ------- > --- POWER (1) -------- Light Angular Momentum Engine > --- PROPULSION (4) --- Light Treads Light Treads Light Treads Light Treads > --- UTILITY (2) ------ Medium Storage Unit Medium Armor Plating > --- WEAPON (2) ------- Beam Rifle Mini Grenade Launcher > --- INVENTORY (10) --- Improved Ion Engine Improved Ion Engine Cooling System Huge Storage Unit High-capacity Matter Pod (200) Sensor Array Faulty Experimental Sensor Array Signal Interpreter Medium Armor Plating Peak State ------------ > --- POWER ------------ Improved Ion Engine > --- PROPULSION ------- Light Treads Light Treads Light Treads Light Treads > --- UTILITY ---------- Medium Storage Unit Experimental Sensor Array > --- WEAPON ----------- Beam Rifle > --- INVENTORY -------- Ion Engine Improved Ion Engine Cooling System Huge Storage Unit High-capacity Matter Pod Sensor Array Signal Interpreter Medium Armor Plating Medium Armor Plating Mini Grenade Launcher [Rating: 19] Favorites ----------- Power Improved Ion Engine Engine Improved Ion Engine Power Core Light Nuclear Core Propulsion Light Treads Treads Light Treads Leg Aluminum Leg Wheel Armored Wheel Utility High-capacity Matter Pod Device Experimental Sensor Array Storage High-capacity Matter Pod Protection Medium Armor Plating Weapon Assault Rifle Energy Gun Beam Rifle Ballistic Gun Assault Rifle Launcher Mini Grenade Launcher Build | -11 -10 -10 -9 -9 -9 -8 ------- Run | Yrd Mat Min Mat Min Exi Min Slots Evolved 2 | . . . 2 . . . Power . | . . . . . . . Propulsion 2 | . . . 2 . . . Utility . | . . . . . . . Weapon . | . . . . . . . Parts Attached 41 | 6 14 . 15 4 . 2 Power 8 | 1 3 . 3 . . 1 Engine 7 | 1 2 . 3 . . 1 Core 1 | . 1 . . . . . Reactor . | . . . . . . . Propulsion 11 | 2 2 . 7 . . . Treads 4 | . . . 4 . . . Leg 3 | 2 . . 1 . . . Wheel 4 | . 2 . 2 . . . Hover . | . . . . . . . Flight . | . . . . . . . Utility 12 | 1 7 . 1 3 . . Device 1 | . . . . 1 . . Storage 9 | 1 7 . 1 . . . Processor . | . . . . . . . Hackware . | . . . . . . . Protection 2 | . . . . 2 . . Artifact . | . . . . . . . Weapon 10 | 2 2 . 4 1 . 1 Energy Gun 5 | 1 1 . 2 1 . . Energy Cannon . | . . . . . . . Ballistic Gun 3 | 1 1 . 1 . . . Ballistic Cannon . | . . . . . . . Launcher 2 | . . . 1 . . 1 Special Weapon . | . . . . . . . Impact Weapon . | . . . . . . . Slashing Weapon . | . . . . . . . Piercing Weapon . | . . . . . . . Special Melee Weapon . | . . . . . . . Unidentified Prototypes 1 | . . . . 1 . . Parts Lost 9 | . . . 8 1 . . Power 2 | . . . 2 . . . Propulsion 3 | . . . 3 . . . Utility . | . . . . . . . Weapon 4 | . . . 3 1 . . Highest Loss Streak 8 | . . . 8 1 . . To Critical Strikes . | . . . . . . . Average Slot Usage (%) 91 | . 95 100 86 88 88 88 Engine 8 | . 8 . 7 11 11 11 Core 3 | . 5 14 2 . . . Treads 18 | . . . 20 44 44 44 Leg 8 | . 26 . 1 . . . Wheel 6 | . . 28 12 . . . Storage 20 | . 24 28 22 16 11 11 Protection 2 | . . . . 5 11 11 Energy Gun 7 | . 8 . 4 10 11 11 Ballistic Gun 12 | . 19 28 11 . . . Naked Turns . | . . . . . . . Heaviest Build 93 | 13 93 93 27 27 27 30 Greatest Support 80 | 20 24 24 80 80 80 80 Greatest Overweight (x) 7 | 1 7 3 4 . . . Average Overweight (x) . | . . 3 . . . . Largest Inventory Capacity 25 | 8 25 25 25 10 10 10 Average Capacity 11 | 6 9 25 10 10 10 10 Most Carried 12 | 3 12 12 11 10 10 10 Average Carried 8 | 1 5 12 9 9 10 9 Final Capacity 25 | 8 25 25 10 10 10 10 Final Carried 12 | 1 12 12 9 10 10 9 Class Distribution -------------------- 54% | Mutant 45% | Scavenger-Mutant Dominant Class ---------------- Mutant | -10/Materials Mutant | -10/Mines Scavenger-Mutant | -9/Materials Scavenger-Mutant | -9/Mines Scavenger-Mutant | -9/Exiles Scavenger-Mutant | -8/Mines Resources | -11 -10 -10 -9 -9 -9 -8 ----------- Run | Yrd Mat Min Mat Min Exi Min Matter Collected 892 | 254 132 51 403 18 . 34 Remotely . | . . . . . . . Salvage Created 992 | . 152 51 591 24 . 174 Parts 75 | . 11 5 42 1 . 16 Haulers Intercepted . | . . . . . . . Recyclers Shooed 1 | . . . . . . 1 Parts Field Recycled . | . . . . . . . Retrieved Matter . | . . . . . . . Parts Self-Destructed . | . . . . . . . Prevented . | . . . . . . . Kills | -11 -10 -10 -9 -9 -9 -8 ------- Run | Yrd Mat Min Mat Min Exi Min Combat Hostiles Destroyed 30 | . 5 3 11 3 . 8 Melee 3 | . . . 3 . . . Guns 14 | . 4 3 5 1 . 1 AOE 13 | . 1 . 3 2 . 7 Classes Destroyed 5 | . 3 . 2 . . . Watcher 3 | . 1 . 2 . . . Swarmer 13 | . 3 3 . 3 . 4 Grunt 12 | . 2 . 6 . . 4 Duelist 1 | . . . 1 . . . Sentry 4 | . . . 4 . . . Best Kill Streak 8 | . 3 3 3 4 . 8 Combat Bots Only 8 | . 3 3 3 4 . 8 Max Kills in Single Turn 3 | . 1 1 1 2 . 3 Gunslinging . | . . . . . . . Exploded 3 | . 1 . 1 2 . 3 Melee 1 | . . . 1 . . . Uniques/NPCs Destroyed . | . . . . . . . Combat | -11 -10 -10 -9 -9 -9 -8 -------- Run | Yrd Mat Min Mat Min Exi Min Hostile Shots Fired 148 | . 16 28 73 6 . 25 Missed 39 | . 5 8 19 . . 7 Damage Taken 1748 | . 126 162 1028 89 . 343 Core 434 | . 16 14 335 . . 69 Absorbed by Shields . | . . . . . . . Core Remaining (%) 94 | 100 . 88 . . . . Volleys Fired 69 | . 17 9 30 4 3 6 Largest 2 | . 2 2 2 2 1 2 Hottest 86 | . 60 40 79 79 56 86 Shots Fired 127 | . 34 18 53 6 3 13 Gun 117 | . 34 18 50 5 3 7 Cannon . | . . . . . . . Launcher 10 | . . . 3 1 . 6 Special . | . . . . . . . Kinetic 73 | . 21 18 33 1 . . Thermal 26 | . 1 . 11 4 3 7 Explosive 10 | . . . 3 1 . 6 Electromagnetic 18 | . 12 . 6 . . . Robot Hit Streak 8 | . 8 2 6 3 . 3 Robot Miss Streak 6 | . 6 4 3 1 . 4 Penetration Max . | . . . . . . . Secondary Targets 2 | . . 1 1 . . . Max Gunslinging Chain 1 | . . 1 1 . . . Shots Hit Robots 62 | . 18 7 28 4 . 5 Core Hits 66 | . 9 3 37 3 . 14 Critical Kills . | . . . . . . . Critical Parts Destroyed 1 | . . . 1 . . . Critical Strikes 1 | . . . 1 . . . Destroy 1 | . . . 1 . . . Melee Attacks . | . . . . . . . Impact . | . . . . . . . Slashing . | . . . . . . . Piercing . | . . . . . . . Sneak Attacks . | . . . . . . . Combat Hostiles . | . . . . . . . Follow-up Attacks . | . . . . . . . Damage Inflicted 2082 | . 354 103 728 212 . 685 Guns 829 | . 253 103 387 43 . 43 Cannons . | . . . . . . . Explosions 1132 | . 85 . 236 169 . 642 Melee . | . . . . . . . Ramming 121 | . 16 . 105 . . . Kinetic 530 | . 177 103 250 . . . Thermal 245 | . 85 . 74 43 . 43 Explosive 1047 | . . . 236 169 . 642 Electromagnetic 139 | . 76 . 63 . . . Impact . | . . . . . . . Slashing . | . . . . . . . Piercing . | . . . . . . . Highest Corruption 8 | . . . 3 8 8 8 Average Corruption 4 | . . . 2 4 8 8 Corruption Purged . | . . . . . . . Corruption Blocked . | . . . . . . . Effects 23 | . . . 6 5 2 10 Message Errors 4 | . . . 2 . 1 1 Matter Fused 4 | . . . 1 2 . 1 Heat Flow Errors 4 | . . . 3 . 1 . Energy Discharges 4 | . . . . . . 4 Data Loss (minor) 1 | . . . . . . 1 Data Loss (major) 1 | . . . . 1 . . Misfires 2 | . . . . 1 . 1 Alerts 2 | . . . . . . 2 Weapon Failures 1 | . . . . 1 . . Overload Shots . | . . . . . . . Overflow Damage 32 | . . . . 32 . . Projectiles . | . . . . . . . Explosions 32 | . . . . 32 . . Melee . | . . . . . . . Knockbacks 1 | . . . 1 . . . Impact 1 | . . . 1 . . . Kinetic . | . . . . . . . Secondary . | . . . . . . . Self-Inflicted Damage 217 | . . . 46 46 . 125 Shots 5 | . . . . 1 . 4 Rammed 32 | . . . 32 . . . Targets Rammed 38 | . 6 . 32 . . . Kicked 6 | . 6 . . . . . Crushed . | . . . . . . . Highest Temperature 268 | . 45 . 240 36 268 198 Average Temperature 65 | . 23 . 51 18 141 103 Received Heat Transfer 393 | . 51 . 234 . . 108 Siege Activations . | . . . . . . . Robots Corrupted . | . . . . . . . Combat Hostiles . | . . . . . . . Parts Fried . | . . . . . . . Impact Corruptions . | . . . . . . . Robots Melted . | . . . . . . . Combat Hostiles . | . . . . . . . Parts Melted . | . . . . . . . Heat Transferred 557 | . 150 . 185 111 . 111 Parts Sabotaged . | . . . . . . . Parts Stolen . | . . . . . . . Parts Stripped . | . . . . . . . Power Chain Reactions 1 | . 1 . . . . . Alert | -11 -10 -10 -9 -9 -9 -8 ------- Run | Yrd Mat Min Mat Min Exi Min Peak Influence 350 | . 137 104 350 152 . 218 Initial 68 | . . 34 40 68 . . Average 95 | . 62 93 167 150 . 13 Maximum Alert Level 1 | . . . 1 . . 1 Low Security (%) 88 | 100 100 100 60 100 . 95 Level 1 11 | . . . 39 . . 4 Level 2 . | . . . . . . . Level 3 . | . . . . . . . Level 4 . | . . . . . . . Level 5 . | . . . . . . . High Security . | . . . . . . . Max Security . | . . . . . . . Squads Dispatched 2 | . . . 2 . . . Investigation . | . . . . . . . Extermination . | . . . . . . . Reinforcement 2 | . . . 2 . . . Assault . | . . . . . . . Garrison . | . . . . . . . Intercept . | . . . . . . . Searches Triggered . | . . . . . . . Construction Impeded . | . . . . . . . Haulers Reinforced . | . . . . . . . Active Scanning Responses . | . . . . . . . Cargo Convoy Interrupts . | . . . . . . . Stealth | -11 -10 -10 -9 -9 -9 -8 --------- Run | Yrd Mat Min Mat Min Exi Min Distress Signals . | . . . . . . . Communications Jammed . | . . . . . . . Distress Signals . | . . . . . . . Times Spotted 44 | . 11 3 16 1 . 13 Peak Tracking Total 10 | . 3 3 4 1 . 10 Tactical Retreats 5 | . 2 . 3 . . . Traps | -11 -10 -10 -9 -9 -9 -8 ------- Run | Yrd Mat Min Mat Min Exi Min Traps Triggered . | . . . . . . . Indirectly . | . . . . . . . Trap Hack Attempts . | . . . . . . . Triggered . | . . . . . . . Disarmed . | . . . . . . . Reprogrammed 6 | . 6 . . . . . Reused . | . . . . . . . Traps Extracted . | . . . . . . . Installed . | . . . . . . . Triggered . | . . . . . . . Machines | -11 -10 -10 -9 -9 -9 -8 ---------- Run | Yrd Mat Min Mat Min Exi Min Machines Disabled . | . . . . . . . Max in Single Turn . | . . . . . . . Machines Repaired . | . . . . . . . Machines Dismantled . | . . . . . . . Machines Sabotaged . | . . . . . . . Overloaded Fab Kills . | . . . . . . . Hacking | -11 -10 -10 -9 -9 -9 -8 --------- Run | Yrd Mat Min Mat Min Exi Min Machines Accessed 2 | . 2 . . . . . Terminals 1 | . 1 . . . . . Fabricators . | . . . . . . . Repair Stations . | . . . . . . . Recycling Units 1 | . 1 . . . . . Scanalyzers . | . . . . . . . Garrison Access . | . . . . . . . Total Hacks 10 | . 10 . . . . . Successful 7 | . 7 . . . . . Failed 3 | . 3 . . . . . Catastrophic . | . . . . . . . Database Lockouts . | . . . . . . . Manual . | . . . . . . . Terminals 6 | . 6 . . . . . Fabricators . | . . . . . . . Repair Stations . | . . . . . . . Recycling Units 4 | . 4 . . . . . Scanalyzers . | . . . . . . . Garrison Access . | . . . . . . . Terminal Hacks 4 | . 4 . . . . . Terminal Index 1 | . 1 . . . . . Alert Level 1 | . 1 . . . . . Locate Traps 1 | . 1 . . . . . Reprogram Traps 1 | . 1 . . . . . Fabricator Hacks . | . . . . . . . Repair Station Hacks . | . . . . . . . Recycling Unit Hacks 3 | . 3 . . . . . Report Inventory 1 | . 1 . . . . . Retrieve Components 2 | . 2 . . . . . Scanalyzer . | . . . . . . . Garrison Access Hacks . | . . . . . . . Unauthorized Hacks . | . . . . . . . Terminals . | . . . . . . . Fabricators . | . . . . . . . Repair Stations . | . . . . . . . Recycling Units . | . . . . . . . Scanalyzers . | . . . . . . . Garrison Access . | . . . . . . . Data Cores Recovered . | . . . . . . . Used . | . . . . . . . Hacking Detections 2 | . 2 . . . . . Full Trace Events . | . . . . . . . Feedback Events . | . . . . . . . Feedback Blocked . | . . . . . . . Robot Schematics Acquired . | . . . . . . . Robots Built . | . . . . . . . Authchips . | . . . . . . . Time . | . . . . . . . Total Robot Build Rating . | . . . . . . . Part Schematics Acquired . | . . . . . . . Parts Built . | . . . . . . . Authchips . | . . . . . . . Time . | . . . . . . . Total Part Build Rating . | . . . . . . . Parts Repaired . | . . . . . . . Time . | . . . . . . . Parts Recycled . | . . . . . . . Recycled Matter . | . . . . . . . Retrieved Matter . | . . . . . . . Retrieved Components 7 | . 7 . . . . . Parts Scanalyzed . | . . . . . . . Part Schematics Acquired . | . . . . . . . Parts Damaged . | . . . . . . . Bothacking | -11 -10 -10 -9 -9 -9 -8 ------------ Run | Yrd Mat Min Mat Min Exi Min Used RIF Installer . | . . . . . . . Robots Hacked . | . . . . . . . Non-combat . | . . . . . . . Combat . | . . . . . . . Robot Hacks Applied . | . . . . . . . Relay Couplers Released . | . . . . . . . Fabnet Peak Effective % . | . . . . . . . Robots Rewired . | . . . . . . . Allies Hacked . | . . . . . . . Hacks Repelled . | . . . . . . . Allies | -11 -10 -10 -9 -9 -9 -8 -------- Run | Yrd Mat Min Mat Min Exi Min Total Allies . | . . . . . . . Largest Group . | . . . . . . . Highest-Rated Group . | . . . . . . . Highest-Rated Ally . | . . . . . . . Total Orders . | . . . . . . . Ally Attacks . | . . . . . . . Total Damage . | . . . . . . . Kills . | . . . . . . . Allies Corrupted . | . . . . . . . Allies Melted . | . . . . . . . Intel | -11 -10 -10 -9 -9 -9 -8 ------- Run | Yrd Mat Min Mat Min Exi Min Robot Analysis Total . | . . . . . . . Derelict Logs Recovered 2 | . . 1 . 1 . . Drone Launches . | . . . . . . . Drone Recoveries . | . . . . . . . Exploration | -11 -10 -10 -9 -9 -9 -8 ------------- Run | Yrd Mat Min Mat Min Exi Min Turns Passed 1848 | 67 576 191 492 211 53 258 Spaces Moved 1065 | 50 348 122 244 122 30 149 Core 16 | 12 3 . 1 . . . Treads 454 | . . . 153 122 30 149 Legs 382 | 38 334 . 10 . . . Wheels 213 | . 11 122 80 . . . Hover . | . . . . . . . Flight . | . . . . . . . Fastest Speed 50 | 50 90 135 90 160 160 160 Average Speed 142 | 110 136 135 141 160 160 160 Slowest Speed 400 | 120 400 135 260 160 160 160 Overloaded Moves . | . . . . . . . Propulsion Burnouts . | . . . . . . . Robots Hopped . | . . . . . . . Cave-ins Triggered . | . . . . . . . Exploration Rate (%) 30 | 4 50 39 28 36 8 51 Regions Visited 6 Branch Regions 4 Pre-discovered Areas . | . . . . . . . Known Exits Taken 1 | . . . 1 . . . Unknown Exits Taken 5 | 1 1 1 . 1 1 . Scrap Searched . | . . . . . . . Spaces Dug . | . . . . . . . Terrain Destroyed 92 | . 4 . 21 11 . 56 Melee . | . . . . . . . Projectile . | . . . . . . . AOE 92 | . 4 . 21 11 . 56 Terrain Rammed . | . . . . . . . Walls Destroyed . | . . . . . . . Machines Disabled . | . . . . . . . Actions | -11 -10 -10 -9 -9 -9 -8 --------- Run | Yrd Mat Min Mat Min Exi Min Total 1260 | 62 412 130 335 130 32 159 Wait . | . . . . . . . Move 1059 | 49 347 121 243 121 29 149 Hop . | . . . . . . . Pick Up 40 | 7 20 . 11 1 . 1 Fast Attach . | . . . . . . . Attach 23 | 6 4 . 12 . . 1 Detach . | . . . . . . . Swap 18 | . 10 . 3 4 . 1 Drop 13 | . 8 . 4 . . 1 Fire 69 | . 17 9 30 4 3 6 Melee . | . . . . . . . Ram 32 | . . . 32 . . . Kick 6 | . 6 . . . . . Crush . | . . . . . . . Escape Stasis . | . . . . . . . Rewire . | . . . . . . . Trap . | . . . . . . . Miscellaneous . | . . . . . . . Route ------- -11/Scrapyard -10/Materials -10/Mines -9/Materials (discovered 3 exits: Mat / *Min x2) -9/Mines -9/Exiles -8/Mines History --------- Turn | Location | Event 9 | -11/Scrapyard | Discovered new exit (range 15) 68 | -11/Scrapyard | Entered Materials 307 | -10/Materials | Build established: Mutant 545 | -10/Materials | Discovered new exit (range 15) 644 | -10/Materials | Entered Mines 654 | -10/Mines | Met a Derelict bent on vengeance 827 | -10/Mines | Discovered new exit (range 6) 828 | -10/Mines | Learned 4 Materials zone layouts 835 | -10/Mines | Entered Materials 835 | -9/Materials | Evolved 2 slots: Propulsion x2 836 | -9/Materials | Identified exit to Materials 836 | -9/Materials | Identified exit to Mines 978 | -9/Materials | Core integrity fell below 50% 1011 | -9/Materials | Lost 8 parts (2p3n3w) 1038 | -9/Materials | Core integrity fell below 20% 1210 | -9/Materials | Discovered exit to Mines (range 16) 1298 | -9/Materials | Build established: Scavenger-Mutant 1327 | -9/Materials | Entered Mines 1444 | -9/Mines | Learned Materials terminal intel 1491 | -9/Mines | Found a damaged Exp. Sensor Array with a note attached 1494 | -9/Mines | Found Prototype Device 1495 | -9/Mines | Identified Exp. Sensor Array 1532 | -9/Mines | Deemed a non-threat by the Exiles lab entrance 1532 | -9/Mines | Discovered new exit (range 5) 1538 | -9/Mines | Entered Exiles 1568 | -9/Exiles | Discovered new exit (range 15) 1591 | -9/Exiles | Entered Mines 1849 | -8/Mines | Destroyed by G-47 Trooper with Particle Gun Last Messages --------------- System corrupted: Component data lost. System corrupted: IFF burst signal emitted. Critical hit (Burn: +37). G-47 Trooper destroyed. G-50 Soldier destroyed. S-10 Pest destroyed. G-47 Trooper destroyed. G-47 Trooper suffers critical hit (Burn). G-47 Trooper destroyed. The unstable cave ceiling collapses. G-47 Trooper destroyed. S-10 Pest destroyed. The unstable cave ceiling collapses. 12 Matter crushed. Acquired Lgt. Angular Momentum Engine. K-01 Serf collects debris. Dropped Ion Engine. Acquired 34 matter. K-01 Serf collects debris. The unstable cave ceiling collapses. Map ----- +----------------------------------------------------+ | ??????????????????????????????????## #???????? | | ???????????????????????????????????## ##???????? | | ????????????????????????????????????## #????????? | | ?????????????????????????????????????# #????????? | | ?????????????????????????????????##### #??#####?? | | ?????????????????????????????????# #?## ##? | | ?????????????????????????????????# ### #?# #? | | ?????????????????????????????????????# #?# #? | | ?????????????????????????????????????# #?# #?? | | ?????????????????????????????????????# ### #??? | | ?????????????????????????????????????# ## #???? | | ?????????????????????????????????????# ## ##??? | | ?????????????????????????????????????# #??? | | ?????????????????????????????????????# ##?? | | ?????????????????????????????????????###### ##? | | ????????????????????????????????????????## ## | | ?????????????????#?????????????????????## ## # | | ????????????????##g?????????????????#### #### # | | ????????????????# ??????????????### #??# | | ????????????????# ??######????## ##??# | | ?????????????????# g ### ###### ##???# | | ??????????????????#g ##????#### | | ??????????????????# ###### #????????? | | ??????????????????# l #????## ##????????? | | ??????????????????# # * ##????#####?????????? | | ??????????????????# k = @ #??????????????????? | | ??????????? = #?????????????????? | | ?????????? u % [ ##?????????????????? | | ?????????? ##### = #??????????????????? | | ??????????? ??????# ##??????????????????? | | ???????????????????## [ #???????????????????? | | ???????????????????? = % ###???????????????????? | | ???????????????????# =*##?????????????????????? | | ??????????????????? *[ ?????????????????????? | | ?????????????????? ?????????????????????? | | ????????????????? ?????????????????????? | | ????????????????? #######????????????????????? | | ???????????????? #???????????????????????????? | | ?????????????????? #????????????????????????????? | | ?????????????????????????????????????????????????? | | ?????????????????????????????????????????????????? | | ?????????????????????????????????????????????????? | | ?????????????????????????????????????????????????? | | ?????????????????????????????????????????????????? | | | | | | | | | | | | | +----------------------------------------------------+ Best States ------------- Heat Dissipation 28 Energy Generation 14 Energy Capacity 265 Matter Stores 500 Matter Capacity 500 Sight Range 16 Terrain Scan Density 10 Armor Coverage 225 Evasion (%) 55 Recoil Reduction 4 Item Schematics ----------------- None Robot Schematics ------------------ None Fabricated ------------ Nothing Alien Tech Used ----------------- None Achievements -------------- Fist Fight Challenges ------------ None Game ------ Seed BladeLauncherBroadsword Manual? 0 Play Time 00:21:31 Cumulative 7.5 hours Start 2024.04.03 @ 12:02:45 End 2024.04.03 @ 12:23:02 Sessions 1 Manual Loads 0 Difficulty Rogue Special Mode None Game No. 10 Rogue 10 Adventurer 0 Explorer 0 Win Type - Total 0 Types 0/0/0/0/0/0/0/0/0 Lore% 4 Gallery% 13 Achievement% 11 Wizard Run 0 Options --------- Layout 1 ASCII 0 Keyboard 0 Movement Mouse Keybinds 0 Fullscreen 1 Font 24/Smallcaps Map View 50x35 Zoom Use 0% Tactical HUD 0 Map Filters NONE Filters NONE Steam 1 RUN: ffe02e49-37c5-4b2d-8be8-5e62531e4776